fUSD/lending_fUSD_20260401
["ID","MTS","AMOUNT","RATE_DAILY","PERIOD"]
[419254551,1775057444115,-151.0,0.00014577,2]
[419254552,1775057444125,-150.14902977,0.0001459,2]
[419254553,1775057444136,-201.92639551,0.00014602,2]
[419254554,1775057444146,-187.151787,0.00014614,2]
[419254555,1775057444155,-939.0,0.00014615,5]
[419254556,1775057444165,-541.0,0.00014615,5]
[419254557,1775057444175,-355.03870199,0.0001472,2]
[419254558,1775057444185,-215.37996586,0.00014737,2]
[419254559,1775057444195,-10538.28571117,0.00014738,2]
[419254560,1775057444205,-427.31,0.00014794,2]
[419254561,1775057444215,-1500.0,0.00014795,2]
[419254562,1775057444224,-332.58486862,0.00014795,2]
[419254563,1775057444234,-1380.70129313,0.00014795,2]
[419254564,1775057444244,-867.40868416,0.00014795,2]
[419254565,1775057444254,-182.51086849,0.00014795,2]
[419254566,1775057444263,-699.36,0.00014853,2]
[419254567,1775057444274,-404.9098,0.000149,22]
[419254568,1775057444283,-161.29,0.00014983,2]
[419254569,1775057444292,-2136.74,0.00014999,2]
[419254570,1775057444302,-500.0,0.00015,2]
[419254571,1775057444312,-500.0,0.00015,2]
[419254572,1775057444321,-500.0,0.00015,2]
[419254573,1775057444331,-500.0,0.00015,2]
[419254574,1775057444341,-500.0,0.00015,2]
[419254575,1775057444350,-500.0,0.00015,2]
[419254576,1775057444360,-500.0,0.00015,2]
[419254577,1775057444369,-500.0,0.00015,2]
[419254578,1775057444379,-500.0,0.00015,2]
[419254579,1775057444390,-500.0,0.00015,2]
[419254580,1775057444399,-500.0,0.00015,2]
[419254581,1775057444409,-500.0,0.00015,2]
[419254582,1775057444420,-500.0,0.00015,2]
[419254583,1775057444430,-500.0,0.00015,2]
[419254584,1775057444439,-500.0,0.00015,2]
[419254585,1775057444449,-500.0,0.00015,2]
[419254586,1775057444458,-500.0,0.00015,2]
[419254587,1775057444467,-500.0,0.00015,2]
[419254588,1775057444477,-500.0,0.00015,2]
[419254589,1775057444486,-500.0,0.00015,2]
[419254590,1775057444496,-500.0,0.00015,2]
[419254591,1775057444506,-500.0,0.00015,2]
[419254592,1775057444516,-500.0,0.00015,2]
[419254593,1775057444526,-500.0,0.00015,2]
[419254594,1775057444536,-264.73,0.00015,2]
[419254595,1775057444548,-500.0,0.00015,2]
[419254596,1775057444558,-500.0,0.00015,2]
[419254597,1775057444569,-500.0,0.00015,2]
[419254598,1775057444579,-500.0,0.00015,2]
[419254599,1775057444590,-500.0,0.00015,2]
[419254600,1775057444600,-500.0,0.00015,2]
[419254601,1775057444610,-500.0,0.00015,2]
[419254602,1775057445005,-500.0,0.00015,2]
[419254603,1775057445046,-500.0,0.00015,2]
[419254604,1775057445057,-500.0,0.00015,2]
[419254605,1775057445068,-500.0,0.00015,2]
[419254606,1775057445078,-500.0,0.00015,2]
[419254607,1775057445089,-500.0,0.00015,2]
[419254608,1775057445101,-500.0,0.00015,2]
[419254609,1775057445113,-500.0,0.00015,2]
[419254610,1775057445123,-500.0,0.00015,2]
[419254611,1775057445132,-500.0,0.00015,2]
[419254612,1775057445142,-500.0,0.00015,2]
[419254613,1775057445152,-500.0,0.00015,2]
[419254614,1775057445161,-500.0,0.00015,2]
[419254615,1775057445171,-500.0,0.00015,2]
[419254616,1775057445181,-500.0,0.00015,2]
[419254617,1775057445190,-500.0,0.00015,2]
[419254618,1775057445200,-500.0,0.00015,2]
[419254619,1775057445210,-500.0,0.00015,2]
[419254620,1775057445221,-500.0,0.00015,2]
[419254621,1775057445231,-500.0,0.00015,2]
[419254622,1775057445240,-500.0,0.00015,2]
[419254623,1775057445251,-500.0,0.00015,2]
[419254624,1775057445262,-500.0,0.00015,2]
[419254625,1775057445273,-500.0,0.00015,2]
[419254626,1775057445283,-500.0,0.00015,2]
[419254627,1775057445293,-500.0,0.00015,2]
[419254628,1775057445302,-500.0,0.00015,2]
[419254629,1775057445312,-500.0,0.00015,2]
[419254630,1775057445321,-500.0,0.00015,2]
[419254631,1775057445332,-500.0,0.00015,2]
[419254632,1775057445342,-500.0,0.00015,2]
[419254633,1775057445352,-500.0,0.00015,2]
[419254634,1775057445362,-500.0,0.00015,2]
[419254635,1775057445373,-500.0,0.00015,2]
[419254636,1775057445384,-500.0,0.00015,2]
[419254637,1775057445393,-500.0,0.00015,2]
[419254638,1775057445403,-500.0,0.00015,2]
[419254639,1775057445412,-520.06,0.00015,2]
[419254640,1775057445422,-1002.59070664,0.00015,2]
[419254641,1775057445432,-300.0,0.00015,2]
[419254642,1775057445442,-160.0,0.00015,2]
[419254643,1775057445453,-3258.0,0.00015023,2]
[419254644,1775057445463,-389.7987032,0.00015029,2]
[419254645,1775057445472,-1016.81169474,0.00015029,2]
[419254646,1775057445482,-391.64742239,0.00015033,2]
[419254647,1775057445492,-217.15233878,0.00015068,2]
[419254648,1775057445501,-200.0,0.00015068,2]
[419254649,1775057445511,-1481.23780761,0.00015068,2]
[419254650,1775057445521,-187.78006525,0.00015068,2]
[419254651,1775057445531,-200.0,0.00015068,2]
[419254652,1775057445541,-296.57605829,0.00015068,2]
[419254654,1775057445551,-799.54513345,0.00015068,2]
[419254655,1775057445562,-814.74,0.00015068,2]
[419254656,1775057445573,-236.46653029,0.0001508,2]
[419254657,1775057445584,-2090.0,0.00015081,2]
[419254658,1775057445594,-168.0,0.0001511,2]
[419254659,1775057445604,-510.0,0.00015138,3]
[419254660,1775057445615,-1263.0,0.00015142,2]
[419254661,1775057445624,-150.351,0.00015142,2]
[419254662,1775057445634,-933.398,0.00015142,2]
[419254663,1775057445644,-1229.472,0.00015142,2]
[419254664,1775057445656,-626.633,0.00015142,2]
[419254665,1775057445667,-3519.0,0.00015142,2]
[419254666,1775057445677,-7911.68653657,0.00015145,2]
[419254667,1775057445687,-168.0,0.00015158,2]
[419254668,1775057445696,-2896.0,0.00015173,2]
[419254669,1775057445707,-2000.0,0.000152,2]
[419254670,1775057445718,-168.0,0.00015242,2]
[419254671,1775057445728,-1985.0,0.00015258,2]
[419254672,1775057445737,-11981.23922054,0.0001526,2]
[419254673,1775057445746,-187.136,0.00015285,2]
[419254674,1775057445756,-3457.675,0.00015285,2]
[419254675,1775057445767,-10538.28571117,0.00015319,2]
[419254676,1775057445778,-2000.0,0.00015342,2]
[419254677,1775057445789,-785.2,0.0001536,2]
[419254678,1775057445799,-3684.0,0.00015377,2]
[419254679,1775057445810,-11981.23922053,0.00015388,2]
[419254680,1775057445821,-5850.0,0.00015405,2]
[419254681,1775057445831,-162.80706736,0.00015412,2]
[419254682,1775057445843,-283.76,0.00015446,2]
[419254683,1775057445854,-4767.18,0.00015471,2]
[419254684,1775057445864,-4000.0,0.00015507,2]
[419254685,1775057445874,-11981.23922053,0.00015516,2]
[419254686,1775057445884,-1257.0,0.00015526,2]
[419254687,1775057445894,-2000.0,0.000156,2]
[419254688,1775057445903,-2000.0,0.000156,2]
[419254689,1775057445913,-150.04960437,0.000156,2]
[419254690,1775057445923,-225.18697532,0.00015616,2]
[419254691,1775057445933,-200.0,0.00015616,2]
[419254692,1775057445942,-1536.04360649,0.00015616,2]
[419254693,1775057445952,-194.72792766,0.00015616,2]
[419254694,1775057445962,-829.12830338,0.00015616,2]
[419254695,1775057445971,-785.2,0.00015634,2]
[419254696,1775057445983,-30000.0,0.00015637,2]
[419254697,1775057445993,-11981.23922053,0.00015644,2]
[419254698,1775057446002,-347.266851,0.00015668,7]
[419254699,1775057446012,-268.623883,0.00015668,7]
[419254700,1775057446022,-1252.0,0.00015678,2]
[419254701,1775057446032,-6890.0,0.00015689,2]
[419254702,1775057446042,-500.0,0.00015712,2]
[419254703,1775057446053,-168.0,0.00015726,2]
[419254704,1775057446065,-150.0,0.00015726,2]
[419254705,1775057446074,-150.0,0.00015726,2]
[419254706,1775057446085,-204.22993374,0.00015726,2]
[419254707,1775057446095,-8758.0,0.00015737,2]
[419254708,1775057446105,-151.0,0.00015737,2]
[419254709,1775057446116,-151.0,0.00015737,2]
[419254710,1775057446128,-151.0,0.00015737,2]
[419254711,1775057446138,-151.0,0.00015737,2]
[419254712,1775057446149,-1252.0,0.00015739,2]
[419254713,1775057446160,-350.0,0.00015744,2]
[419254714,1775057446172,-223.399734,0.00015746,7]
[419254715,1775057446182,-11981.23922053,0.00015772,2]
[419254716,1775057446193,-6500.0,0.00015773,2]
[419254717,1775057446202,-2000.0,0.000158,2]
[419254718,1775057446212,-237.6216955,0.00015814,2]
[419254719,1775057446223,-427.0,0.00015818,2]
[419254720,1775057446232,-700.0,0.00015832,2]
[419254721,1775057446242,-2000.0,0.0001584,2]
[419254722,1775057446252,-2000.0,0.0001584,2]
[419254723,1775057446262,-2000.0,0.0001584,2]
[419254724,1775057446271,-712.0,0.00015866,2]
[419254725,1775057446280,-500.0,0.00015871,2]
[419254726,1775057446291,-200.0,0.00015871,2]
[419254727,1775057446300,-500.0,0.00015872,2]
[419254728,1775057446309,-500.0,0.00015872,2]
[419254729,1775057446319,-500.0,0.00015872,2]
[419254730,1775057446328,-200.0,0.00015872,2]
[419254731,1775057446338,-1192.8524474,0.00015882,2]
[419254732,1775057446347,-350.0,0.00015884,2]
[419254733,1775057446357,-150.39535805,0.0001589,2]
[419254734,1775057446367,-2500.0,0.0001589,2]
[419254735,1775057446378,-4529.0,0.00015894,2]
[419254736,1775057446388,-4000.0,0.00015895,2]
[419254737,1775057446398,-1755.29204768,0.00015898,2]
[419254738,1775057446407,-150.71162126,0.00015898,2]
[419254739,1775057446416,-530.81548879,0.00015898,2]
[419254740,1775057446426,-459.440195,0.000159,2]
[419254741,1775057446436,-459.440195,0.000159,2]
[419254742,1775057446445,-459.440195,0.000159,2]
[419254743,1775057446454,-459.440195,0.000159,2]
[419254745,1775057446464,-7911.68653657,0.000159,2]
[419254747,1775057446473,-260.71933592,0.000159,2]
[419254748,1775057446482,-10538.28571117,0.000159,2]
[419254750,1775057446492,-453.0,0.000159,2]
[419254751,1775057446502,-11981.23922053,0.000159,2]
[419254752,1775057446511,-206.04,0.00015908,2]
[419254753,1775057446520,-4789.0,0.00015916,2]
[419254754,1775057446530,-151.0,0.00015916,2]
[419254755,1775057446539,-151.0,0.00015916,2]
[419254756,1775057446549,-296.641659,0.00015916,2]
[419254757,1775057446559,-608.067946,0.00015916,2]
[419254758,1775057446568,-608.067946,0.00015916,2]
[419254759,1775057446578,-608.067946,0.00015916,2]
[419254760,1775057446587,-608.067946,0.00015916,2]
[419254761,1775057446597,-570.0,0.00015959,2]
[419254762,1775057446607,-427.0,0.00015961,2]
[419254763,1775057446616,-150.01618887,0.0001597,2]
[419254764,1775057446625,-1000.0,0.0001597,2]
[419254765,1775057446635,-1000.0,0.0001597,2]
[419254766,1775057446645,-1000.0,0.0001597,2]
[419254767,1775057446655,-1188.51483974,0.0001597,2]
[419254768,1775057446664,-500.0,0.0001597,2]
[419254769,1775057446674,-500.0,0.0001597,2]
[419254770,1775057446685,-500.0,0.0001597,2]
[419254771,1775057446696,-762.87386502,0.0001597,2]
[419254772,1775057446705,-1000.0,0.0001597,2]
[419254773,1775057446715,-500.0,0.0001597,2]
[419254774,1775057446725,-151.0,0.0001597,2]
[419254775,1775057446735,-151.0,0.0001597,2]
[419254776,1775057446744,-151.0,0.0001597,2]
[419254777,1775057446754,-151.0,0.0001597,2]
[419254778,1775057446764,-151.0,0.0001597,2]
[419254779,1775057446776,-2136.74,0.00015972,2]
[419254780,1775057446788,-275.71340123,0.00015973,2]
[419254781,1775057446800,-500.0,0.00015973,2]
[419254782,1775057446810,-500.0,0.00015973,2]
[419254783,1775057446819,-358.49657185,0.00015973,2]
[419254784,1775057446829,-502.3938553,0.00015973,2]
[419254785,1775057446840,-500.0,0.00015973,2]
[419254786,1775057446850,-418.05622523,0.00015973,2]
[419254787,1775057446861,-500.0,0.00015973,2]
[419254788,1775057446871,-500.0,0.00015973,2]
[419254789,1775057446880,-500.0,0.00015973,2]
[419254790,1775057446892,-500.0,0.00015973,2]
[419254791,1775057446902,-2136.74,0.00015981,2]
[419254792,1775057446912,-2136.74,0.00015981,2]
[419254793,1775057446921,-2136.74,0.00015981,2]
[419254794,1775057446931,-2136.74,0.00015981,2]
[419254795,1775057446941,-2136.74,0.00015981,2]
[419254796,1775057446952,-2071.1902571,0.00015982,2]
[419254797,1775057446963,-6412.0,0.00015996,2]
[419254798,1775057446973,-883.9912693,0.00015996,2]
[419254799,1775057446982,-4023.1866847,0.00015996,2]
[419254800,1775057446992,-41060.2287108,0.00015996,2]
[419254801,1775057447002,-672.00857251,0.00015997,2]
[419254802,1775057447012,-151.0,0.00015997,2]
[419254803,1775057447022,-151.0,0.00015997,2]
[419254804,1775057447032,-500.0,0.00015997,2]
[419254805,1775057447042,-487.27760899,0.00015997,2]
[419254806,1775057447051,-500.0,0.00015997,2]
[419254807,1775057447062,-423.71935218,0.00015997,2]
[419254808,1775057447072,-682.86,0.00015997,2]
[419254809,1775057447082,-682.86,0.00015997,2]
[419254810,1775057447092,-682.86,0.00015997,2]
[419254811,1775057447102,-682.86,0.00015997,2]
[419254812,1775057447112,-682.86,0.00015997,2]
[419254813,1775057447122,-1233683.6524048,0.00015998,2]
[419254814,1775057447132,-10528.2079179,0.00015998,2]
[419254815,1775057447141,-14741.4170467,0.00015998,2]
[419254816,1775057447150,-4589.0,0.00015998,2]
[419254817,1775057447160,-149742.6732666,0.00015998,2]
[419254818,1775057447169,-151.0,0.00015998,2]
[419254819,1775057447179,-151.0,0.00015998,2]
[419254820,1775057447188,-151.0,0.00015998,2]
[419254821,1775057447197,-151.0,0.00015998,2]
[419254822,1775057447207,-151.0,0.00015998,2]
[419254823,1775057447216,-152.348904,0.00015998,2]
[419254824,1775057447226,-459.440195,0.00015998,2]
[419254825,1775057447236,-459.440195,0.00015998,2]
[419254826,1775057447246,-459.440195,0.00015998,2]
[419254827,1775057447255,-459.440195,0.00015998,2]
[419254828,1775057447265,-106807.0884155,0.00015998,2]
[419254829,1775057447274,-151.0,0.00015998,2]
[419254830,1775057447284,-151.0,0.00015998,2]
[419254831,1775057447294,-151.0,0.00015998,2]
[419254832,1775057447304,-151.0,0.00015998,2]
[419254833,1775057447314,-151.0,0.00015998,2]
[419254834,1775057447324,-151.0,0.00015998,2]
[419254835,1775057447333,-608.067946,0.00015998,2]
[419254836,1775057447343,-608.067946,0.00015998,2]
[419254837,1775057447353,-608.067946,0.00015998,2]
[419254838,1775057447363,-608.067946,0.00015998,2]
[419254839,1775057447372,-151.0,0.00015998,2]
[419254840,1775057447382,-151.0,0.00015998,2]
[419254841,1775057447391,-151.0,0.00015998,2]
[419254842,1775057447400,-151.0,0.00015998,2]
[419254843,1775057447411,-151.0,0.00015998,2]
[419254844,1775057447420,-270.664937,0.00015998,2]
[419254845,1775057447432,-270.664937,0.00015998,2]
[419254846,1775057447541,-270.664937,0.00015998,2]
[419254847,1775057447551,-270.664937,0.00015998,2]
[419254848,1775057447560,-355.3905852,0.00015999,2]
[419254849,1775057447569,-155.384,0.00015999,2]
[419254850,1775057447578,-2136.74,0.00015999,2]
[419254851,1775057447587,-2136.74,0.00015999,2]
[419254852,1775057447596,-2136.74,0.00015999,2]
[419254853,1775057447605,-2136.74,0.00015999,2]
[419254854,1775057447614,-2136.74,0.00015999,2]
[419254855,1775057447623,-2136.87748779,0.00015999,2]
[419254856,1775057447632,-682.86,0.00015999,2]
[419254857,1775057447641,-682.86,0.00015999,2]
[419254858,1775057447651,-682.86,0.00015999,2]
[419254859,1775057447661,-682.86,0.00015999,2]
[419254860,1775057447671,-682.86,0.00015999,2]
[419254861,1775057447681,-682.86,0.00015999,2]
[419254862,1775057447690,-682.86,0.00015999,2]
[419254863,1775057447701,-682.86,0.00015999,2]
[419254864,1775057447710,-682.86,0.00015999,2]
[419254865,1775057447719,-682.99,0.00015999,2]
[419254866,1775057447728,-208501.66090068,0.00016,2]
[419254867,1775057447739,-1341643.81640072,0.00016,2]
[419254868,1775057449127,-5057.06842795,0.00012907,2]
[419254869,1775057449138,-1045.0,0.00014603,2]
[419254870,1775057449147,-218.31486099,0.00015986,2]
[419254871,1775057449157,-218.31486099,0.0001599,2]
[419254872,1775057449166,-218.31486099,0.0001599,2]
[419254873,1775057449175,-21538.43984032,0.00016,2]
[419254874,1775057449518,-704.43794619,0.00015898,2]
[419254875,1775057449985,-7330.6332733,0.00015898,2]
[419254876,1775057449995,-3200.3101189,0.00016,2]
[419254877,1775057450018,-336.28372,0.00016,2]
[419254878,1775057450035,-5057.06842795,0.00013506,2]
[419254879,1775057450046,-28799.68335733,0.00016,2]
[419254891,1775058631867,-987.75961641,0.000104,3]
[419254897,1775058631919,-341.348914,0.000104,3]
[419254902,1775058631973,-1284.18884217,0.000104,3]
[419254903,1775058631990,-187.70262742,0.000104,3]
[419254904,1775058632000,-250.0,0.00010426,2]
[419254905,1775058632011,-500.0,0.00010503,2]
[419254906,1775058632021,-1000.0,0.00010504,2]
[419254907,1775058632032,-834.79182097,0.00010898,2]
[419254908,1775058632045,-331.20817903,0.00010898,2]
[419254909,1775058632054,-238.0,0.00010899,2]
[419254910,1775058632064,-300.0,0.00010899,2]
[419254911,1775058632073,-160.0,0.00010899,2]
[419254912,1775058632083,-130.73539168,0.000109,5]
[419254913,1775058632095,-1933.86916611,0.000109,5]
[419254914,1775058632107,-571.68055395,0.000109,5]
[419254915,1775058632120,-871.14161176,0.000109,5]
[419254916,1775058632132,-1009.784997,0.000109,5]
[419254917,1775058632145,-977.18094207,0.000109,5]
[419254918,1775058632157,-39.60733743,0.000109,5]
[419254919,1775058632166,-1524.0,0.00011258,2]
[419254920,1775058632176,-1062.05206249,0.00011258,2]
[419254921,1775058632189,-461.94793751,0.00011258,2]
[419254922,1775058632199,-509.96582238,0.00011258,2]
[419254923,1775058632213,-1014.03417762,0.00011258,2]
[419254924,1775058632223,-1524.0,0.00011258,2]
[419254925,1775058632233,-1524.0,0.00011258,2]
[419254926,1775058632243,-1524.0,0.00011258,2]
[419254927,1775058632253,-541.19382238,0.00011258,2]
[419254928,1775058632872,-982.80617762,0.00011258,2]
[419254929,1775058632882,-1524.0,0.00011258,2]
[419254930,1775058632891,-135.82623937,0.00011258,2]
[419254931,1775058632904,-900.0,0.00011258,2]
[419254932,1775058632918,-488.17376063,0.00011258,2]
[419254933,1775058632928,-228.59699227,0.00011258,2]
[419254934,1775058632941,-555.95984743,0.00011258,2]
[419254935,1775058632966,-739.4431603,0.00011258,2]
[419254936,1775058632976,-1524.0,0.00011258,2]
[419254937,1775058632986,-946.07408375,0.00011258,2]
[419254944,1775058637999,-451.15504761,0.00011258,2]
[419254945,1775058638105,-126.77086864,0.00011258,2]
[419254946,1775058638115,-1524.0,0.00011258,2]
[419254947,1775058638126,-1524.0,0.00011258,2]
[419254948,1775058638136,-1524.0,0.00011258,2]
[419254949,1775058638147,-4490.99155643,0.0001144,2]
[419254950,1775058638156,-250.0,0.0001144,2]
[419254951,1775058638167,-600.0,0.0001144,2]
[419254952,1775058638176,-600.0,0.0001144,2]
[419254953,1775058638186,-600.0,0.0001144,2]
[419254954,1775058638195,-600.0,0.0001144,2]
[419254955,1775058638205,-600.0,0.0001144,2]
[419254956,1775058638215,-250.0,0.0001144,2]
[419254957,1775058638224,-300.0,0.0001144,2]
[419254958,1775058638234,-3791.62,0.00011507,2]
[419254959,1775058638245,-420.0,0.00011978,2]
[419254960,1775058638254,-150.99,0.00012087,2]
[419254961,1775058638263,-1631.49,0.00012087,2]
[419254962,1775058638273,-150.99,0.00012087,2]
[419254963,1775058638282,-299.99,0.00012087,2]
[419254964,1775058638292,-150.0,0.000123,2]
[419254965,1775058638303,-358.11,0.00012839,2]
[419254966,1775058638314,-1600.0,0.00012851,2]
[419254967,1775058638324,-150.0,0.0001286,2]
[419254968,1775058638334,-1500.0,0.00012873,2]
[419254969,1775058638344,-14877.74,0.00012896,2]
[419254970,1775058638355,-15522.14,0.0001292,2]
[419254971,1775058638364,-580.53,0.00012921,2]
[419254972,1775058638373,-158.53,0.00012924,2]
[419254974,1775058638382,-510.0,0.00013111,2]
[419254976,1775058638391,-200.0,0.00013131,2]
[419254978,1775058638401,-587.0,0.00013164,2]
[419254980,1775058638410,-7205.09,0.00013222,2]
[419254982,1775058638419,-500.0,0.00013406,2]
[419254984,1775058638429,-358.11,0.00013552,2]
[419254986,1775058638438,-192.2126,0.000136,7]
[419254988,1775058638447,-500.0,0.00013673,2]
[419254990,1775058638457,-500.0,0.00013698,2]
[419254992,1775058638466,-423.71935218,0.00013698,2]
[419254994,1775058638475,-1068.37,0.00013698,2]
[419254997,1775058638486,-1068.37,0.00013698,2]
[419254998,1775058638495,-1068.37,0.00013698,2]
[419255000,1775058638505,-307.8656227,0.00013698,2]
[419255003,1775058638517,-500.0,0.00013698,2]
[419255098,1775058640329,-260.5043773,0.00013698,2]
[419255099,1775058640339,-1068.37,0.00013698,2]
[419255100,1775058640348,-447.26108817,0.00013698,2]
[419255101,1775058640358,-500.0,0.00013698,2]
[419255102,1775058640369,-500.0,0.00013698,2]
[419255103,1775058640378,-184.56695484,0.00013698,2]
[419255104,1775058640388,-2841.18,0.00013699,2]
[419255105,1775058640398,-167.41,0.00013699,2]
[419255106,1775058640407,-5000.0,0.00013699,2]
[419255107,1775058640418,-500.0,0.00013699,2]
[419255108,1775058640427,-500.0,0.00013699,2]
[419255109,1775058640438,-631.45509652,0.00013699,2]
[419255110,1775058640447,-150.0,0.00013699,2]
[419255111,1775058640456,-150.0,0.00013699,2]
[419255112,1775058640465,-204.22993374,0.00013699,2]
[419255113,1775058640475,-500.0,0.00013699,2]
[419255114,1775058640486,-500.0,0.00013699,2]
[419255115,1775058640497,-500.0,0.00013699,2]
[419255116,1775058640506,-500.0,0.00013699,2]
[419255117,1775058640516,-500.0,0.00013699,2]
[419255118,1775058640527,-500.0,0.00013699,2]
[419255119,1775058640536,-500.0,0.00013699,2]
[419255120,1775058640546,-500.0,0.00013699,2]
[419255121,1775058640556,-500.0,0.00013699,2]
[419255122,1775058640565,-500.0,0.00013699,2]
[419255123,1775058640574,-500.0,0.00013699,2]
[419255124,1775058640583,-500.0,0.00013699,2]
[419255125,1775058640593,-500.0,0.00013699,2]
[419255126,1775058640603,-532.7968878,0.00013699,2]
[419255127,1775058640613,-500.0,0.00013699,2]
[419255128,1775058640622,-500.0,0.00013699,2]
[419255129,1775058640631,-500.0,0.00013699,2]
[419255130,1775058640641,-500.0,0.00013699,2]
[419255131,1775058640650,-500.0,0.00013699,2]
[419255132,1775058640659,-500.0,0.00013699,2]
[419255134,1775058640669,-500.0,0.00013699,2]
[419255135,1775058640678,-283.37750517,0.00013699,2]
[419255136,1775058640687,-500.0,0.00013699,2]
[419255137,1775058640696,-542.83228243,0.00013699,2]
[419255138,1775058640705,-500.0,0.00013699,2]
[419255139,1775058640715,-500.0,0.00013699,2]
[419255140,1775058640724,-500.0,0.00013699,2]
[419255141,1775058640733,-500.0,0.00013699,2]
[419255142,1775058640742,-500.0,0.00013699,2]
[419255143,1775058640752,-500.0,0.00013699,2]
[419255144,1775058640761,-500.0,0.00013699,2]
[419255145,1775058640770,-500.0,0.00013699,2]
[419255146,1775058640779,-500.0,0.00013699,2]
[419255147,1775058640788,-500.0,0.00013699,2]
[419255148,1775058640797,-500.0,0.00013699,2]
[419255149,1775058640807,-150.0,0.00013699,2]
[419255150,1775058640816,-500.0,0.00013699,2]
[419255151,1775058640826,-152.20138541,0.00013699,2]
[419255152,1775058640836,-500.0,0.00013699,2]
[419255153,1775058640846,-367.08167146,0.00013699,2]
[419255154,1775058640856,-500.0,0.00013699,2]
[419255155,1775058640866,-500.0,0.00013699,2]
[419255156,1775058640876,-500.0,0.00013699,2]
[419255157,1775058640887,-500.0,0.00013699,2]
[419255158,1775058640898,-500.0,0.00013699,2]
[419255159,1775058640909,-500.0,0.00013699,2]
[419255160,1775058640919,-350.0,0.00013699,2]
[419255161,1775058640929,-150.0,0.00013699,2]
[419255162,1775058640939,-500.0,0.00013699,2]
[419255163,1775058640949,-500.0,0.00013699,2]
[419255164,1775058640959,-500.0,0.00013699,2]
[419255165,1775058640970,-500.0,0.00013699,2]
[419255166,1775058640980,-500.0,0.00013699,2]
[419255167,1775058640989,-500.0,0.00013699,2]
[419255168,1775058640999,-500.0,0.00013699,2]
[419255169,1775058641008,-500.0,0.00013699,2]
[419255171,1775058641018,-500.0,0.00013699,2]
[419255173,1775058641027,-500.0,0.00013699,2]
[419255175,1775058641037,-500.0,0.00013699,2]
[419255176,1775058641047,-500.0,0.00013699,2]
[419255177,1775058641056,-500.0,0.00013699,2]
[419255178,1775058641067,-500.0,0.00013699,2]
[419255179,1775058641077,-500.0,0.00013699,2]
[419255180,1775058641088,-500.0,0.00013699,2]
[419255181,1775058641099,-500.0,0.00013699,2]
[419255182,1775058641109,-500.0,0.00013699,2]
[419255183,1775058641119,-500.0,0.00013699,2]
[419255184,1775058641129,-500.0,0.00013699,2]
[419255185,1775058641139,-426.25788509,0.00013699,2]
[419255186,1775058641151,-500.0,0.00013699,2]
[419255187,1775058641163,-500.0,0.00013699,2]
[419255188,1775058641172,-500.0,0.00013699,2]
[419255189,1775058641183,-500.0,0.00013699,2]
[419255190,1775058641192,-500.0,0.00013699,2]
[419255191,1775058641202,-500.0,0.00013699,2]
[419255192,1775058641212,-500.0,0.00013699,2]
[419255193,1775058641221,-500.0,0.00013699,2]
[419255194,1775058641230,-500.0,0.00013699,2]